bitfinex-derivatives/quotes_ETHF0:USTF0_20250317
["timestamp","ask_amount","ask_price","bid_price","bid_amount"]
[1742221320091,1.05683,1892.6,1892.5,4.26468]
[1742221320387,1.05683,1892.6,1892.5,3.2078]
[1742221320687,1.05688,1892.5,1892.4,1.7821]
[1742221321085,1.4311,1892.8,1892.4,0.7252]
[1742221321285,1.05685,1892.6,1892.5,4.26465]
[1742221321486,1.05683,1892.6,1892.5,4.26465]
[1742221321681,1.05683,1892.6,1892.5,3.2078]
[1742221322486,1.05683,1892.6,1892.5,4.5665]
[1742221322988,4.07292,1892.8,1892.5,4.5665]
[1742221322989,1.4311,1892.8,1892.5,4.5665]
[1742221323182,1.05683,1892.6,1892.5,4.5665]
[1742221323388,1.4311,1892.8,1892.5,1.3587]
[1742221323589,2.48785,1892.8,1892.6,3.2078]
[1742221323789,0.00792999,1892.9,1892.6,3.2078]
[1742221323790,0.00792999,1892.9,1892.8,1.05672]
[1742221323985,0.00792999,1892.9,1892.8,4.97012]
[1742221324190,0.00792999,1892.9,1892.8,5.68172]
[1742221324988,1.06458999,1892.9,1892.8,5.68172]
[1742221325185,1.06458999,1892.9,1892.8,1.4172]
[1742221325499,1.06458999,1892.9,1892.8,0.7056]
[1742221325787,5.71572999,1892.9,1892.4,3.8898]
[1742221325989,3.2078,1892.6,1892.0,4.27284999]
[1742221326292,1.05722,1891.9,1891.8,3.2078]
[1742221326497,41.85722,1891.9,1891.8,3.2078]
[1742221326688,40.8,1891.9,1891.6,1.3542]
[1742221326895,1.05739,1891.6,1891.5,3.8898]
[1742221327097,1.05755,1891.4,1891.3,1.05755]
[1742221327395,1.05755,1891.3,1891.2,1.3542]
[1742221327596,2.48435,1891.3,1891.2,1.36212999]
[1742221328193,2.48435,1891.3,1891.2,0.00792999]
[1742221328495,1.05765,1891.2,1891.0,1.05772]
[1742221328689,1.3606,1891.2,1890.9,1.415]
[1742221329196,1.05772,1891.0,1890.9,1.415]
[1742221329391,1.0577,1891.1,1890.9,2.47278]
[1742221329697,1.0577,1891.1,1890.9,2.47806676]
[1742221329886,1.05767,1891.1,1890.9,2.47806676]
[1742221330087,1.05772,1891.0,1890.9,1.42028676]
[1742221330592,1.0577,1891.1,1890.9,2.47805676]
[1742221330790,1.3606,1891.2,1890.9,1.42028676]
[1742221331301,1.05772,1891.0,1890.9,1.42028676]
[1742221331496,1.0577,1891.1,1890.9,1.42028676]
[1742221331692,1.05771,1891.1,1890.9,1.42028676]
[1742221332092,1.05767,1891.1,1891.0,3.2078]
[1742221332500,1.05767,1891.1,1891.0,4.5833]
[1742221332898,1.05752,1891.4,1891.0,4.5833]
[1742221333093,1.37362999,1891.5,1891.1,4.26543]
[1742221333291,1.0577,1891.1,1890.9,3.21308676]
[1742221333494,1.37362999,1891.5,1890.9,3.21308676]
[1742221333689,1.05763,1891.2,1891.0,1.3755]
[1742221333893,1.05763,1891.2,1891.0,2.4332]
[1742221334093,2.42329,1891.3,1891.1,4.26546]
[1742221334292,0.00792999,1891.5,1891.1,3.2078]
[1742221334490,1.0575,1891.4,1891.3,3.2078]
[1742221334695,1.05755,1891.3,1891.2,1.4344]
[1742221335199,1.05751,1891.4,1891.2,5.69978]
[1742221335396,2.52019999,1891.5,1891.3,1.05755]
[1742221335595,2.52019999,1891.5,1891.4,3.2078]
[1742221335596,1.46272999,1891.5,1891.4,3.2078]
[1742221335799,1.46272999,1891.5,1891.4,4.2653]
[1742221335996,0.00792999,1891.5,1891.4,4.2653]
[1742221336196,0.00792999,1891.5,1891.4,5.6997]
[1742221336400,1.05717,1892.0,1891.5,2.64361]
[1742221336695,1.05721,1892.0,1891.7,3.2078]
[1742221336905,1.4548,1892.1,1892.0,1.05716]
[1742221337402,2.51181,1892.3,1892.1,1.05707]
[1742221337597,1.4548,1892.3,1892.2,2.50975]
[1742221338099,0.00792999,1892.4,1892.3,1.05699]
[1742221338300,0.00792999,1892.4,1892.3,4.26479]
[1742221339795,1.06489999,1892.4,1892.2,2.50972]
[1742221339996,1.05699,1892.3,1892.2,1.4527]
[1742221340403,2.42319,1892.3,1892.2,1.4527]
[1742221340605,1.05711,1892.1,1892.0,0.7111]
[1742221340905,1.05716,1892.0,1891.9,3.21572999]
[1742221341303,1.05716,1892.0,1891.9,0.00792999]
[1742221341800,1.05716,1892.0,1891.9,3.21572999]
[1742221341994,1.4277,1892.1,1892.0,1.05716]
[1742221342195,1.05711,1892.1,1892.0,2.42636]
[1742221342396,1.4277,1892.3,1892.2,1.05705]
[1742221342598,0.00792999,1892.4,1892.3,1.05699]
[1742221342798,0.00792999,1892.4,1892.3,1.3692]
[1742221343002,0.00792999,1892.4,1892.3,2.42619]
[1742221343398,1.06486999,1892.4,1892.3,1.3692]
[1742221343598,1.05699,1892.3,1892.2,3.2078]
[1742221343798,1.05705,1892.2,1892.1,5.868]
[1742221344198,1.05715,1892.1,1891.9,0.00792999]
[1742221344403,2.49305,1892.1,1891.9,1.06511999]
[1742221344605,1.4359,1892.1,1892.0,1.05716]
[1742221344802,1.4359,1892.1,1892.0,4.26496]
[1742221344999,0.00792999,1892.4,1892.0,3.2078]
[1742221345303,1.05711,1892.1,1892.0,3.2078]
[1742221345503,1.05716,1892.0,1891.9,1.45372999]
[1742221345700,1.05716,1892.0,1891.9,0.00792999]
[1742221346407,1.4359,1892.1,1891.9,0.00792999]
[1742221346601,1.4359,1892.1,1892.0,4.26496]
[1742221346796,1.4359,1892.1,1892.0,5.67116]
[1742221347004,0.00792999,1892.4,1892.0,4.614]
[1742221347303,1.05711,1892.1,1892.0,5.28]
[1742221347507,1.05711,1892.1,1892.0,2.0722]
[1742221347703,1.05716,1892.0,1891.9,0.00792999]
[1742221347908,2.42956,1892.0,1891.9,0.00792999]
[1742221348108,2.42956,1892.0,1891.9,1.41412999]
[1742221348309,2.42956,1892.0,1891.9,2.47134999]
[1742221348707,1.3724,1892.0,1891.9,2.47134999]
[1742221348910,0.00792999,1892.4,1891.9,1.41412999]
[1742221349209,1.3724,1892.3,1892.0,4.26494]
[1742221349401,1.05706,1892.2,1892.0,4.26493]
[1742221349608,1.05706,1892.2,1892.1,1.4062]
[1742221350002,1.05705,1892.2,1892.1,1.4062]
[1742221350207,1.05711,1892.1,1892.0,3.2078]
[1742221351105,1.05716,1892.0,1891.9,0.00792999]
[1742221355214,1.05739,1891.6,1891.5,0.7127]
[1742221356111,1.05761,1891.2,1891.1,3.2078]
[1742221356308,1.05767,1891.1,1891.0,0.6765]
[1742221356521,2.40767,1891.1,1891.0,0.00528676]
[1742221356909,2.40767,1891.1,1891.0,1.33558676]
[1742221358204,2.40767,1891.1,1891.0,2.39330676]
[1742221358610,0.00792999,1891.3,1891.2,1.05761]
[1742221358806,0.00792999,1891.3,1891.2,4.26541]
[1742221359013,0.00792999,1891.3,1891.2,6.76541]
[1742221359213,1.05731,1891.8,1891.7,1.05733]
[1742221359414,1.05733,1891.7,1891.6,3.2078]
[1742221359617,1.05739,1891.6,1891.5,1.7813]
[1742221359817,1.05744,1891.5,1891.4,3.2078]
[1742221360519,1.05744,1891.5,1891.4,4.2653]
[1742221360723,2.48925999,1891.6,1891.5,1.05744]
[1742221360910,0.00792999,1891.6,1891.5,1.05744]
[1742221361918,1.05723,1891.9,1891.8,1.05727]
[1742221362121,1.05723,1891.9,1891.8,4.26507]
[1742221362520,1.05723,1891.9,1891.8,3.2078]
[1742221362817,1.05733,1891.7,1891.6,4.93938]
[1742221363328,1.05733,1891.7,1891.6,3.882]
[1742221363629,1.05733,1891.7,1891.6,0.6742]
[1742221364224,1.05744,1891.5,1891.4,4.26526]
[1742221364418,1.05742,1891.6,1891.5,1.05742]
[1742221364623,1.0575,1891.4,1891.3,0.6742]
[1742221364830,1.05766,1891.2,1891.1,1.05765]
[1742221365029,1.05767,1891.1,1891.0,4.27077676]
[1742221365227,2.43837,1891.1,1891.0,3.21308676]
[1742221365731,2.43837,1891.1,1891.0,4.27080676]
[1742221365929,2.43837,1891.1,1891.0,3.21308676]
[1742221366126,2.43837,1891.1,1891.0,4.27080676]
[1742221366726,2.43837,1891.1,1891.0,1.06300676]
[1742221367329,1.3807,1891.1,1891.0,1.06300676]
[1742221367631,2.43837,1891.1,1891.0,3.21308676]
[1742221368025,2.43837,1891.1,1891.0,4.27080676]
[1742221368422,8.01780211,1891.6,1891.3,1.05755]
[1742221368622,1.3126,1891.5,1891.2,5.8518]
[1742221368828,2.37007,1891.5,1891.4,1.0575]
[1742221369028,1.3126,1891.5,1891.4,4.2653]
[1742221369233,2.36996,1891.7,1891.6,1.05736]
[1742221369432,1.3126,1891.7,1891.6,4.26516]
[1742221369629,2.36993,1891.7,1891.6,3.2078]
[1742221369833,1.05744,1891.5,1891.4,3.2078]
[1742221370133,1.05755,1891.3,1891.2,4.26539]
[1742221370329,1.3126,1891.7,1891.2,3.2078]
[1742221372134,1.05743,1891.6,1891.4,3.2078]
[1742221372334,1.05744,1891.5,1891.4,3.2078]
[1742221372636,1.3126,1891.7,1891.6,1.05739]
[1742221372841,0.00792999,1892.0,1891.9,1.05722]
[1742221373232,1.06512999,1892.0,1891.9,1.05722]
[1742221373434,1.06508999,1892.0,1891.9,2.39472]
[1742221373633,0.00792999,1892.0,1891.9,2.39472]
[1742221374638,1.06508999,1892.0,1891.9,2.39472]
[1742221375239,0.00792999,1892.0,1891.9,2.39472]
[1742221375540,1.05702,1892.3,1892.2,1.05701]
[1742221375743,1.05702,1892.3,1892.2,4.26481]
[1742221375942,43.25878,1892.4,1892.3,1.05699]
[1742221376144,43.25878,1892.4,1892.3,1.4116]
[1742221376345,42.2018,1892.4,1892.3,1.4116]
[1742221376546,1.4018,1892.4,1892.3,2.46859]
[1742221376744,0.00792999,1892.5,1892.4,1.05694]
[1742221376945,0.00792999,1892.5,1892.4,5.67634]
[1742221378746,6.54812,1893.3,1892.9,1.05666]
[1742221378747,2.475,1893.0,1892.9,1.05666]
[1742221378945,2.475,1893.0,1892.9,4.26446]
[1742221379243,1.05666,1892.9,1892.8,2.49207]
[1742221379439,1.05677,1892.7,1892.6,1.05679]
[1742221379646,1.05683,1892.6,1892.5,4.6432]
[1742221380144,1.05683,1892.6,1892.5,5.70008]
[1742221380450,1.366,1892.7,1892.5,4.6432]
[1742221380641,1.05683,1892.6,1892.5,5.70004]
[1742221381039,2.4228,1892.7,1892.6,1.05683]
[1742221381246,1.05683,1892.6,1892.5,5.70004]
[1742221381448,1.05683,1892.6,1892.5,4.6432]
[1742221382541,1.05694,1892.4,1892.3,3.2078]
[1742221382748,1.05699,1892.3,1892.2,3.92022999]
[1742221382944,2.42299,1892.3,1892.2,0.00792999]
[1742221383549,1.05722,1891.9,1891.8,3.2078]
[1742221383747,1.05727,1891.8,1891.7,3.12099]
[1742221383950,1.05727,1891.8,1891.7,2.0637]
[1742221384246,1.05727,1891.8,1891.7,3.12103]
[1742221384438,1.3755,1892.0,1891.8,1.05726]
[1742221384439,1.05726,1891.9,1891.8,1.05726]
[1742221384643,1.38342999,1892.0,1891.7,2.07162999]
[1742221384946,0.00792999,1892.0,1891.9,1.05722]
[1742221385135,0.00792999,1892.0,1891.9,2.40392]
[1742221385340,6.06153211,1892.4,1891.9,2.40392]
[1742221385341,1.3755,1892.4,1892.0,2.64291]
[1742221385647,3.2078,1892.7,1892.2,3.2078]
[1742221385850,1.05699,1892.3,1892.2,3.2078]
[1742221386337,1.05695,1892.4,1892.3,1.05696]
[1742221386538,1.05699,1892.3,1892.2,5.71221]
[1742221386938,1.05699,1892.3,1892.2,4.6552]
[1742221387144,1.05699,1892.3,1892.0,1.05715]
[1742221387145,1.05711,1892.1,1892.0,1.05715]
[1742221387336,1.05711,1892.1,1892.0,2.50455]
[1742221387541,2.50052,1892.3,1892.2,1.05705]
[1742221387942,1.4435,1892.3,1892.2,1.05705]
[1742221388150,0.00792999,1892.4,1892.3,1.05699]
[1742221388447,0.00792999,1892.4,1892.3,4.26479]
[1742221388648,0.00792999,1892.4,1892.3,3.2078]
[1742221388842,1.06489999,1892.4,1892.3,1.05699]
[1742221389043,0.00792999,1892.4,1892.3,4.26479]
[1742221389238,4.68603211,1892.9,1892.3,4.26479]
[1742221389449,1.3961,1892.8,1892.7,4.26452]
[1742221389648,1.05662,1893.0,1892.9,1.05663]
[1742221389850,1.05662,1893.0,1892.9,3.2078]
[1742221390150,1.05666,1892.9,1892.8,2.46759]
[1742221390339,1.3961,1892.9,1892.8,2.46759]
[1742221390544,2.45276,1892.9,1892.8,2.46759]
[1742221390740,2.45276,1892.9,1892.8,1.4109]
[1742221391049,2.45276,1892.9,1892.8,2.46762]
[1742221391448,1.3961,1892.9,1892.8,2.46762]
[1742221391648,1.06456999,1893.0,1892.9,1.05666]
[1742221391943,1.06456999,1893.0,1892.9,4.6187]
[1742221392140,1.06456999,1893.0,1892.9,3.2078]
[1742221392744,1.06456999,1893.0,1892.9,4.26446]
[1742221393049,0.00792999,1893.0,1892.9,4.26446]
[1742221393346,4.68603211,1893.8,1893.0,2.64145]
[1742221393549,11.84787211,1893.8,1893.3,4.26421]
[1742221393851,1.05636,1893.5,1893.4,1.3771]
[1742221395050,42.1136,1893.6,1893.3,3.2078]
[1742221395247,1.05655,1893.1,1893.0,4.5404]
[1742221395753,1.318,1893.4,1893.0,4.5404]
[1742221395952,1.05651,1893.2,1893.0,4.5404]
[1742221396145,1.05647,1893.3,1893.1,1.05651]
[1742221396351,1.318,1893.4,1893.1,1.05654]
[1742221396547,1.05644,1893.3,1893.2,4.26429]
[1742221396744,1.05644,1893.3,1893.2,3.2078]
[1742221397247,1.318,1893.4,1893.3,1.05644]
[1742221397553,1.318,1893.6,1893.4,1.05638]
[1742221397849,4.68603211,1894.0,1893.4,3.2078]
[1742221398049,1.05631,1893.6,1893.4,4.26416]
[1742221398248,1.05632,1893.5,1893.4,3.2078]
[1742221399247,1.05638,1893.4,1893.3,5.1465]
[1742221401047,1.05638,1893.4,1893.3,6.20294]
[1742221401254,1.05638,1893.4,1893.3,5.1465]
[1742221401455,1.4152,1893.6,1893.3,5.1465]
[1742221401657,1.05632,1893.5,1893.4,3.2078]
[1742221402453,1.4152,1893.6,1893.5,1.05632]
[1742221402647,41.85617,1893.8,1893.4,3.2078]
[1742221402851,1.05621,1893.7,1893.6,3.2078]
[1742221403757,4.0742,1893.8,1893.3,1.05641]
[1742221404059,1.05637,1893.5,1893.3,1.05644]
[1742221404254,1.4337,1893.6,1893.2,3.2078]
[1742221404761,40.8,1893.5,1893.2,3.2078]
[1742221404959,1.05644,1893.3,1893.2,4.26427]
[1742221405460,1.05644,1893.3,1893.2,3.2078]
[1742221405959,1.05644,1893.3,1893.2,4.26429]
[1742221406360,1.05644,1893.3,1893.2,3.2078]
[1742221407065,2.64046,1893.8,1893.2,3.2078]
[1742221407260,1.0564,1893.4,1893.3,1.0564]
[1742221408063,44.89315,1893.7,1893.2,3.2078]
[1742221408266,1.05644,1893.3,1893.2,4.26428]
[1742221408459,1.05642,1893.4,1893.3,1.05642]
[1742221408963,1.05644,1893.3,1893.2,3.2078]
[1742221409162,1.05644,1893.3,1893.2,4.26429]
[1742221409361,1.05644,1893.3,1893.2,4.26425]
[1742221409561,1.05644,1893.3,1893.2,3.2078]
[1742221409765,1.05655,1893.1,1893.0,0.6944]
[1742221409964,1.05666,1892.9,1892.8,6.20322]
[1742221410267,1.05666,1892.9,1892.8,3.2078]
[1742221410460,4.99879819,1893.3,1892.8,3.2078]
[1742221410668,1.4427,1893.3,1893.0,3.2078]
[1742221411265,1.05655,1893.1,1893.0,4.26435]
[1742221411468,1.05655,1893.1,1893.0,3.2078]
[1742221411768,1.05655,1893.1,1893.0,4.2644]
[1742221411968,1.05655,1893.2,1893.1,1.05652]
[1742221412161,1.05642,1893.4,1893.3,1.05641]
[1742221412466,1.0564,1893.4,1893.3,1.05639]
[1742221412763,40.8,1893.7,1893.2,5.8572]
[1742221412962,1.05606,1894.0,1893.6,2.64068]
[1742221413162,1.0561,1893.9,1893.8,4.26394]
[1742221413360,1.0561,1893.9,1893.8,3.2078]
[1742221413563,1.05609,1894.0,1893.9,1.05609]
[1742221413762,1.05594,1894.2,1894.1,1.05595]
[1742221414464,40.8,1894.2,1894.1,2.48605]
[1742221414671,1.4209,1894.4,1894.1,2.48606]
[1742221414869,1.4209,1894.4,1894.0,3.2078]
[1742221414870,1.05588,1894.3,1894.2,1.4301]
[1742221415066,1.05599,1894.1,1894.0,3.2078]
[1742221416362,41.85599,1894.1,1894.0,3.2078]
[1742221416561,43.24349,1894.1,1894.0,3.2078]
[1742221416769,1.0561,1893.9,1893.8,1.3345]
[1742221417065,1.05616,1893.8,1893.7,3.87172999]
[1742221417264,2.44366,1893.8,1893.7,3.21572999]
[1742221417465,40.8,1894.1,1893.7,3.21572999]
[1742221417765,2.4436,1894.0,1893.9,1.0561]
[1742221418067,1.0561,1893.9,1893.8,1.3345]
[1742221418271,2.4436,1893.9,1893.8,1.3345]
[1742221419058,2.4436,1893.9,1893.8,2.39066]
[1742221419259,1.0561,1893.9,1893.8,1.3345]
[1742221419973,1.05616,1893.8,1893.7,3.21572999]
[1742221420167,2.39296,1893.8,1893.7,3.21572999]
[1742221420871,1.05632,1893.5,1893.4,0.6722]
[1742221421371,1.05638,1893.4,1893.3,3.2078]
[1742221421767,1.05638,1893.4,1893.3,5.61624]
[1742221421968,1.3368,1893.6,1893.3,4.5598]
[1742221422168,1.3368,1893.6,1893.5,1.05632]
[1742221422169,2.39309,1893.6,1893.5,1.05632]
[1742221422368,1.05632,1893.5,1893.4,2.0608]
[1742221422563,2.39312,1893.5,1893.4,2.0608]
[1742221422970,1.05638,1893.4,1893.3,3.2078]
[1742221423972,1.05644,1893.3,1893.2,0.00792999]
[1742221424472,1.05644,1893.3,1893.2,1.40462999]
[1742221424865,1.0564,1893.4,1893.2,1.40462999]
[1742221425171,1.4056,1893.3,1893.2,2.46111999]
[1742221425369,2.64068,1893.6,1893.2,2.46106999]
[1742221425572,1.05638,1893.4,1893.3,4.2642]
[1742221425978,1.4056,1893.6,1893.4,1.05635]
[1742221425979,1.05635,1893.5,1893.4,1.05635]
[1742221426174,1.05635,1893.5,1893.4,2.36635]
[1742221426375,1.05635,1893.5,1893.4,1.31]
[1742221426573,1.05635,1893.5,1893.4,2.36638]
[1742221426974,1.05635,1893.5,1893.4,1.9888]
[1742221427481,1.05638,1893.4,1893.3,3.2078]
[1742221427672,1.05638,1893.4,1893.3,4.5178]
[1742221428376,1.05638,1893.4,1893.3,5.57424]
[1742221428576,1.05638,1893.4,1893.3,4.5178]
[1742221428782,1.05638,1893.4,1893.3,5.57422]
[1742221428971,1.05638,1893.4,1893.3,4.5178]
[1742221430172,1.05638,1893.4,1893.3,3.2078]
[1742221430568,1.05644,1893.3,1893.2,0.00792999]
[1742221432783,1.05644,1893.3,1893.2,1.37292999]
[1742221433683,1.05644,1893.3,1893.2,0.00792999]
[1742221434084,1.05644,1893.3,1893.2,1.37292999]
[1742221434289,1.05644,1893.3,1893.2,2.42941999]
[1742221434485,1.05644,1893.3,1893.2,1.37292999]
[1742221434786,1.05644,1893.3,1893.2,0.00792999]
[1742221434990,1.05644,1893.3,1893.2,1.42632999]
[1742221435877,1.05644,1893.3,1893.2,0.00792999]
[1742221436985,1.05644,1893.3,1893.2,1.42632999]
[1742221437182,1.4436,1893.4,1893.2,1.42632999]
[1742221437386,1.0564,1893.4,1893.3,4.26424]
[1742221437588,1.05635,1893.5,1893.4,1.05635]
[1742221437885,1.05635,1893.5,1893.4,2.47475]
[1742221438191,2.64850999,1893.7,1893.4,2.47477]
[1742221438381,1.05632,1893.5,1893.4,2.47477]
[1742221438582,1.06416999,1893.7,1893.6,1.05627]
[1742221438879,0.00792999,1893.7,1893.6,4.26407]
[1742221439191,1.06413999,1893.7,1893.6,6.28607]
[1742221439685,1.06413999,1893.7,1893.6,0.7102]
[1742221440487,0.00792999,1893.7,1893.6,4.97427]
[1742221440691,0.00792999,1893.7,1893.6,6.28607]
[1742221441088,1.05616,1893.8,1893.7,1.05617]
[1742221441384,1.05616,1893.8,1893.7,2.0728]
[1742221442979,1.05616,1893.8,1893.7,1.3841]
[1742221443184,1.05621,1893.7,1893.6,3.2078]
[1742221443389,1.05638,1893.4,1893.3,2.0728]
[1742221443988,1.4491,1893.6,1893.3,2.0728]
[1742221444181,1.05635,1893.5,1893.4,1.448]
[1742221445688,1.05629,1893.6,1893.4,4.6558]
[1742221445889,1.05632,1893.5,1893.4,5.71217]
[1742221446096,1.0563,1893.6,1893.5,1.05632]
[1742221446289,1.05613,1893.9,1893.7,1.05616]
[1742221446491,1.4001,1894.2,1893.8,6.0356]
[1742221446795,1.05603,1894.1,1894.0,4.26385]
[1742221447291,1.05584,1894.4,1894.0,10.9944]
[1742221447496,1.05588,1894.3,1894.2,3.2078]
[1742221447683,3.9957,1894.6,1894.2,3.2078]
[1742221447684,40.8,1894.5,1894.2,3.2078]
[1742221447888,3.36528,1894.9,1894.5,1.05574]
[1742221448089,1.3564,1894.8,1894.6,4.6357]
[1742221448402,8.31012735,1895.4,1894.7,2.1508]
[1742221448403,38.13049906,1895.4,1894.7,2.1508]
[1742221448587,38.13049906,1895.4,1894.9,1.0555]
[1742221448588,1.05544,1895.1,1894.9,1.0555]
[1742221448899,1.05544,1895.1,1895.0,1.4279]
[1742221449306,1.05544,1895.1,1894.7,0.7229]
[1742221449307,1.0556,1894.8,1894.7,0.7229]
[1742221449795,1.0556,1894.8,1894.7,2.1508]
[1742221449998,1.05551,1895.0,1894.7,2.1508]
[1742221450196,1.05554,1894.9,1894.8,4.26335]
[1742221450398,1.05552,1895.0,1894.8,4.26335]
[1742221450601,1.05552,1895.0,1894.9,1.336]
[1742221450986,40.8,1895.2,1894.9,1.336]
[1742221451190,40.8,1895.2,1895.0,3.2078]
[1742221451191,1.05545,1895.1,1895.0,3.2078]
[1742221451392,1.4184,1895.3,1895.0,4.5438]
[1742221451587,1.05543,1895.1,1895.0,4.5438]
[1742221451791,1.05554,1895.0,1894.8,6.20208]
[1742221451988,1.05554,1895.0,1894.9,4.5438]
[1742221452596,1.05546,1895.1,1894.9,5.59934]
[1742221452901,1.05546,1895.1,1895.0,1.05549]
[1742221453102,1.05541,1895.2,1895.0,2.50719]
[1742221453301,1.05541,1895.2,1895.0,1.4517]
[1742221453501,1.05541,1895.2,1895.1,0.6803]
[1742221453898,41.85535,1895.3,1895.1,0.6803]
[1742221454101,41.85535,1895.3,1895.2,1.4517]
[1742221454302,1.0553,1895.4,1895.2,1.4517]
[1742221454602,1.0553,1895.4,1895.3,4.93892]
[1742221454803,1.0553,1895.4,1895.3,3.8836]
[1742221455304,1.0553,1895.4,1895.3,3.2078]
[1742221455902,1.05532,1895.3,1895.2,0.00792999]
[1742221456996,3.2078,1895.3,1894.9,1.4526]
[1742221457201,1.05554,1894.9,1894.8,3.2078]
[1742221457698,43.43897,1894.9,1894.6,3.2078]
[1742221457999,1.05571,1894.6,1894.5,7.2912]
[1742221458195,1.05571,1894.6,1894.5,5.36042999]
[1742221460509,1.05569,1894.7,1894.6,1.05571]
[1742221460699,1.05571,1894.6,1894.5,5.36042999]
[1742221460895,1.4001,1894.8,1894.6,1.05569]
[1742221461096,0.00792999,1894.9,1894.8,1.0556]
[1742221461297,0.00792999,1894.9,1894.8,1.7755]
[1742221462397,43.43817,1895.4,1894.8,1.7755]
[1742221462612,1.05545,1895.1,1895.0,4.26323]
[1742221462911,1.05535,1895.3,1895.2,1.05534]
[1742221463111,1.05535,1895.3,1895.2,4.26314]
[1742221463310,1.0553,1895.4,1895.3,1.05532]
[1742221463507,1.0553,1895.4,1895.3,3.08622]
[1742221464015,1.0553,1895.4,1895.3,2.0309]
[1742221464316,1.0553,1895.4,1895.3,3.08622]
[1742221464809,42.1354,1895.6,1895.5,1.05521]
[1742221465008,43.19055,1895.6,1895.5,1.05521]
[1742221465214,2.39058,1895.6,1895.5,1.05521]
[1742221465511,2.39058,1895.6,1895.5,2.47301]
[1742221465809,2.39058,1895.6,1895.5,1.4178]
[1742221466402,1.05521,1895.5,1895.4,3.2078]
[1742221466603,2.38531,1895.5,1895.4,3.2078]
[1742221467217,1.05538,1895.2,1895.1,5.1465]
[1742221467404,1.05537,1895.3,1895.1,5.1465]
[1742221467604,40.8,1895.2,1895.1,7.61973]
[1742221467803,41.85538,1895.2,1895.1,4.6256]
[1742221468006,40.8,1895.2,1895.1,5.68103]
[1742221468205,2.38534,1895.5,1895.4,1.05527]
[1742221468412,4.68603211,1895.8,1895.3,3.2078]
[1742221468710,1.05523,1895.5,1895.4,1.4504]
[1742221468905,1.05519,1895.6,1895.5,1.05521]
[1742221469106,43.21824,1895.7,1895.6,1.05515]
[1742221469311,1.05504,1895.9,1895.6,1.4504]
[1742221469513,1.05501,1895.9,1895.8,1.05501]
[1742221469815,1.05499,1895.9,1895.8,1.05504]
[1742221470002,1.05499,1895.9,1895.8,1.4504]
[1742221470202,1.3631,1895.9,1895.6,1.05512]
[1742221470409,1.05515,1895.6,1895.5,0.00792999]
[1742221470817,2.41825,1895.6,1895.5,0.00792999]
[1742221471403,3.2078,1895.9,1895.5,0.00792999]
[1742221471610,3.2078,1895.9,1895.5,3.21572999]
[1742221471611,1.05515,1895.6,1895.5,3.21572999]
[1742221472119,1.05515,1895.6,1895.5,0.00792999]
[1742221472703,1.3216,1895.7,1895.6,1.05515]
[1742221472910,1.05508,1895.8,1895.6,2.46885]
[1742221473115,3.33872,1896.1,1895.6,9.7629]
[1742221473116,1.05492,1896.1,1895.6,9.7629]
[1742221473317,2.63706,1896.2,1895.7,4.6215]
[1742221473616,2.37658,1896.0,1895.9,3.2078]
[1742221473916,1.05499,1895.9,1895.7,3.2078]
[1742221474117,1.05499,1895.9,1895.8,2.46872]
[1742221474315,1.3216,1896.0,1895.9,1.05499]
[1742221474519,1.05477,1896.3,1896.2,1.05479]
[1742221474707,1.05482,1896.2,1896.1,4.26264]
[1742221474912,1.3096,1896.4,1896.1,3.2078]
[1742221475111,1.05476,1896.3,1896.2,1.4201]
[1742221475307,1.05476,1896.3,1896.2,2.47492]
[1742221475511,1.05476,1896.3,1896.2,1.4201]
[1742221475713,1.05493,1896.0,1895.9,8.3543]
[1742221476017,1.05493,1896.0,1895.9,5.1465]
[1742221476807,2.63753,1895.9,1895.5,5.15442999]
[1742221477011,1.05515,1895.6,1895.5,6.20963999]
[1742221477218,1.05515,1895.6,1895.5,9.41743999]
[1742221477413,1.3096,1895.7,1895.6,1.05515]
[1742221477619,1.05515,1895.6,1895.5,3.21572999]
[1742221478116,2.43085,1895.6,1895.5,3.21572999]
[1742221478517,2.43085,1895.6,1895.3,5.1465]
[1742221478518,1.05527,1895.4,1895.3,5.1465]
[1742221478721,4.01368,1895.6,1895.2,3.18117]
[1742221478722,1.05532,1895.3,1895.2,3.18117]
[1742221479115,1.05532,1895.4,1895.3,1.05529]
[1742221479428,1.05517,1895.6,1895.5,1.05515]
[1742221479729,43.23081,1895.7,1895.6,1.05515]
[1742221479914,1.38362999,1895.7,1895.5,8.3543]
[1742221480113,2.43872999,1895.7,1895.6,1.427]
[1742221480517,1.06302999,1895.7,1895.6,2.48215]
[1742221480723,1.06302999,1895.7,1895.6,1.427]
[1742221481116,1.05515,1895.6,1895.5,5.1465]
[1742221481316,2.39055,1895.6,1895.5,5.1465]
[1742221481719,2.39055,1895.6,1895.5,6.20171]
[1742221482024,2.39055,1895.6,1895.5,9.7572]
[1742221482225,2.39055,1895.6,1895.5,5.1465]
[1742221482524,2.39055,1895.6,1895.5,9.40951]
[1742221482726,0.00792999,1895.7,1895.6,1.05515]
[1742221482924,1.06302999,1895.7,1895.6,1.05515]
[1742221483118,0.00792999,1895.7,1895.6,1.05515]
[1742221483321,1.06302999,1895.7,1895.6,1.05515]
[1742221483526,2.49522999,1895.7,1895.6,1.05515]
[1742221483924,1.44012999,1895.7,1895.6,1.05515]
[1742221484113,0.00792999,1895.7,1895.6,1.05515]
[1742221484624,1.05515,1895.6,1895.5,10.81238]
[1742221484921,1.05515,1895.6,1895.5,1.4029]
[1742221485131,1.05521,1895.5,1895.4,0.67]